Workbook

Sheet Finančná zostava
B2: VÝROČNÁ FINANČNÁ ZOSTAVA | K2: 2016 | N2: Vyberte rok zostavy v bunke L2
B3: NÁZOV SPOLOČNOSTI | N3: Ak chcete upraviť údaje, vyberte hárok Vstupné finančné údaje
B5: KĽÚČOVÉ METRIKY | D5: Kliknutím zmeníte kľúčové metriky zostavy
B7: =Výpočty!B8 -> PRÍJMY | D7: =Výpočty!B9 -> ČISTÝ ZISK | F7: =Výpočty!B10 -> ÚROK | H7: =Výpočty!B11 -> ODPISY | J7: =Výpočty!B12 -> PREVÁDZKOVÝ ZISK
B8: =IFERROR(Výpočty!G8,"") -> 180,584 EUR | D8: =IFERROR(Výpočty!G9,"") -> 67,475 EUR | F8: =IFERROR(Výpočty!G10,"") -> 3,789 EUR | H8: =IFERROR(Výpočty!G11,"") -> 5,547 EUR | J8: =IFERROR(Výpočty!G12,"") -> 73,426 EUR
B9: =Výpočty!H8 -> 0% | D9: =Výpočty!H9 -> 2% | F9: =Výpočty!H10 -> 14% | H9: =Výpočty!H11 -> 9% | J9: =Výpočty!H12 -> -5%
B13: VŠETKY METRIKY | D13: Neupravujte uvedené informácie. Kliknutím zadáte finančné údaje
B15: METRIKY | D15: ="ROK ZOSTAVY ("&Vybratý_rok&")" -> ROK ZOSTAVY (2016) | F15: ="PREDCHÁDZAJÚCI ROK ("&Vybratý_rok-1&")" -> PREDCHÁDZAJÚCI ROK (2015) | H15: % ZMENA | I15: =CONCATENATE(Roky,"-ROČNÝ TREND") -> 5-ROČNÝ TREND
B16: =Výpočty!B15 -> PRÍJMY | D16: =IF($B16="","",Výpočty!G15) -> 180,583.88 EUR | F16: =IF($B16="","",Výpočty!F15) -> 180,026.63 EUR | H16: =IFERROR(D16/F16-1,"") -> 0%
B17: =Výpočty!B16 -> PREVÁDZKOVÉ NÁKLADY | D17: =IF($B17="","",Výpočty!G16) -> 94,419.45 EUR | F17: =IF($B17="","",Výpočty!F16) -> 80,883.33 EUR | H17: 17%
B18: =Výpočty!B17 -> PREVÁDZKOVÝ ZISK | D18: =IF($B18="","",Výpočty!G17) -> 73,425.99 EUR | F18: =IF($B18="","",Výpočty!F17) -> 77,317.83 EUR | H18: -5%
B19: =Výpočty!B18 -> ODPISY | D19: =IF($B19="","",Výpočty!G18) -> 5,546.88 EUR | F19: =IF($B19="","",Výpočty!F18) -> 5,068.42 EUR | H19: 9%
B20: =Výpočty!B19 -> ÚROK | D20: =IF($B20="","",Výpočty!G19) -> 3,789.47 EUR | F20: =IF($B20="","",Výpočty!F19) -> 3,338.30 EUR | H20: 14%
B21: =Výpočty!B20 -> ČISTÝ ZISK | D21: =IF($B21="","",Výpočty!G20) -> 67,474.85 EUR | F21: =IF($B21="","",Výpočty!F20) -> 66,272.10 EUR | H21: 2%
B22: =Výpočty!B21 -> DAŇ | D22: =IF($B22="","",Výpočty!G21) -> 31,408.25 EUR | F22: =IF($B22="","",Výpočty!F21) -> 29,424.53 EUR | H22: 7%
B23: =Výpočty!B22 -> ZISK PO ZDANENÍ | D23: =IF($B23="","",Výpočty!G22) -> 50,247.68 EUR | F23: =IF($B23="","",Výpočty!F22) -> 42,438.20 EUR | H23: 18%
B24: =Výpočty!B23 -> METRIKA 1 | D24: =IF($B24="","",Výpočty!G23) -> 19.96 EUR | F24: =IF($B24="","",Výpočty!F23) -> 16.78 EUR | H24: 19%
B25: =Výpočty!B24 -> METRIKA 2 | D25: =IF($B25="","",Výpočty!G24) -> 26.01 EUR | F25: =IF($B25="","",Výpočty!F24) -> 21.84 EUR | H25: 19%
B26: =Výpočty!B25 -> METRIKA 3 | D26: =IF($B26="","",Výpočty!G25) -> 31.08 EUR | F26: =IF($B26="","",Výpočty!F25) -> 26.39 EUR | H26: 18%
B27: =Výpočty!B26 -> METRIKA 4 | D27: =IF($B27="","",Výpočty!G26) -> 14.92 EUR | F27: =IF($B27="","",Výpočty!F26) -> 14.59 EUR | H27: 2%
B28: =Výpočty!B27 -> METRIKA 5 | D28: =IF($B28="","",Výpočty!G27) -> 1.03 EUR | F28: =IF($B28="","",Výpočty!F27) -> 1.00 EUR | H28: 3%
B29: =Výpočty!B28 -> METRIKA 6 | D29: =IF($B29="","",Výpočty!G28) -> 0.34 EUR | F29: =IF($B29="","",Výpočty!F28) -> 0.30 EUR | H29: 13%
B30: =Výpočty!B29 ->  | D30: =IF($B30="","",Výpočty!G29) ->  | F30: =IF($B30="","",Výpočty!F29) -> 
B31: =Výpočty!B30 ->  | D31: =IF($B31="","",Výpočty!G30) ->  | F31: =IF($B31="","",Výpočty!F30) -> 
B32: =Výpočty!B31 ->  | D32: =IF($B32="","",Výpočty!G31) ->  | F32: =IF($B32="","",Výpočty!F31) -> 
B33: =Výpočty!B32 ->  | D33: =IF($B33="","",Výpočty!G32) ->  | F33: =IF($B33="","",Výpočty!F32) -> 
B34: =Výpočty!B33 ->  | D34: =IF($B34="","",Výpočty!G33) ->  | F34: =IF($B34="","",Výpočty!F33) -> 
B35: =Výpočty!B34 ->  | D35: =IF($B35="","",Výpočty!G34) ->  | F35: =IF($B35="","",Výpočty!F34) -> 
B36: =Výpočty!B35 ->  | D36: =IF($B36="","",Výpočty!G35) ->  | F36: =IF($B36="","",Výpočty!F35) -> 
B37: =Výpočty!B36 ->  | D37: =IF($B37="","",Výpočty!G36) ->  | F37: =IF($B37="","",Výpočty!F36) -> 
B38: =Výpočty!B37 ->  | D38: =IF($B38="","",Výpočty!G37) ->  | F38: =IF($B38="","",Výpočty!F37) -> 
B39: =Výpočty!B38 ->  | D39: =IF($B39="","",Výpočty!G38) ->  | F39: =IF($B39="","",Výpočty!F38) -> 
B40: =Výpočty!B39 ->  | D40: =IF($B40="","",Výpočty!G39) ->  | F40: =IF($B40="","",Výpočty!F39) -> 

Sheet Vstupné finančné údaje
B2: ZADANIE FINANČNÝCH ÚDAJOV
B3: MÔŽETE DEFINOVAŤ AŽ 25 KĽÚČOVÝCH METRÍK ZA 7 ROKOV
B4: Kliknutím zobrazíte finančnú zostavu
B5: NÁZOV METRIKY | C5: 2010 | D5: 2011 | E5: 2012 | F5: 2013 | G5: 2014 | H5: 2015 | I5: 2016
B6: PRÍJMY | C6: 125,000.00 EUR | D6: 134,137.45 EUR | E6: 142,728.38 EUR | F6: 150,687.46 EUR | G6: 165,044.56 EUR | H6: 180,026.63 EUR | I6: 180,583.88 EUR
B7: PREVÁDZKOVÉ NÁKLADY | C7: 65,000.00 EUR | D7: 70,962.31 EUR | E7: 75,924.86 EUR | F7: 78,901.27 EUR | G7: 81,674.37 EUR | H7: 80,883.33 EUR | I7: 94,419.45 EUR
B8: PREVÁDZKOVÝ ZISK | C8: 60,000.00 EUR | D8: 64,207.30 EUR | E8: 68,857.69 EUR | F8: 75,643.25 EUR | G8: 76,755.26 EUR | H8: 77,317.83 EUR | I8: 73,425.99 EUR
B9: ODPISY | C9: 4,500.00 EUR | D9: 4,517.77 EUR | E9: 4,656.92 EUR | F9: 4,974.21 EUR | G9: 5,024.11 EUR | H9: 5,068.42 EUR | I9: 5,546.88 EUR
B10: ÚROK | C10: 2,500.00 EUR | D10: 2,745.82 EUR | E10: 2,893.11 EUR | F10: 3,136.12 EUR | G10: 3,148.53 EUR | H10: 3,338.30 EUR | I10: 3,789.47 EUR
B11: ČISTÝ ZISK | C11: 54,000.00 EUR | D11: 54,761.08 EUR | E11: 55,860.81 EUR | F11: 59,747.95 EUR | G11: 61,483.59 EUR | H11: 66,272.10 EUR | I11: 67,474.85 EUR
B12: DAŇ | C12: 22,000.00 EUR | D12: 23,920.54 EUR | E12: 25,576.74 EUR | F12: 27,498.86 EUR | G12: 28,335.67 EUR | H12: 29,424.53 EUR | I12: 31,408.25 EUR
B13: ZISK PO ZDANENÍ | C13: 32,000.00 EUR | D13: 34,943.49 EUR | E13: 38,418.53 EUR | F13: 39,895.05 EUR | G13: 40,607.73 EUR | H13: 42,438.20 EUR | I13: 50,247.68 EUR
B14: METRIKA 1 | C14: 12.80 EUR | D14: 12.81 EUR | E14: 13.78 EUR | F14: 14.29 EUR | G14: 15.57 EUR | H14: 16.78 EUR | I14: 19.96 EUR
B15: METRIKA 2 | C15: 18.20 EUR | D15: 18.59 EUR | E15: 19.22 EUR | F15: 20.17 EUR | G15: 20.48 EUR | H15: 21.84 EUR | I15: 26.01 EUR
B16: METRIKA 3 | C16: 19.10 EUR | D16: 20.55 EUR | E16: 21.87 EUR | F16: 23.19 EUR | G16: 24.67 EUR | H16: 26.39 EUR | I16: 31.08 EUR
B17: METRIKA 4 | C17: 12.10 EUR | D17: 12.21 EUR | E17: 12.59 EUR | F17: 13.70 EUR | G17: 13.76 EUR | H17: 14.59 EUR | I17: 14.92 EUR
B18: METRIKA 5 | C18: 0.75 EUR | D18: 0.79 EUR | E18: 0.85 EUR | F18: 0.89 EUR | G18: 0.91 EUR | H18: 1.00 EUR | I18: 1.03 EUR
B19: METRIKA 6 | C19: 0.23 EUR | D19: 0.25 EUR | E19: 0.27 EUR | F19: 0.28 EUR | G19: 0.29 EUR | H19: 0.30 EUR | I19: 0.34 EUR

Sheet Nastavenia kľúčových metrík
B2: DEFINOVANIE KĽÚČOVÝCH METRÍK
B3: VYBERTE MAXIMÁLNE 5 KĽÚČOVÝCH METRÍK, KTORÉ SA ZOBRAZIA V HORNEJ ČASTI ZOSTAVY
B4: Kliknutím zobrazíte finančnú zostavu
B5: 1 | C5: PRÍJMY | E5: =IF(ISBLANK(C5),"← Vyberte hodnotu z rozbaľovacej ponuky",IF(COUNTIF($C$5:C5,C5)>1,"Bunku "&C5&" ste vybrali viac než jedenkrát.","")) -> 
B6: 2 | C6: ČISTÝ ZISK | E6: =IF(ISBLANK(C6),"← Vyberte hodnotu z rozbaľovacej ponuky",IF(COUNTIF($C$5:C6,C6)>1,"Bunku "&C6&" ste vybrali viac než jedenkrát.","")) -> 
B7: 3 | C7: ÚROK | E7: =IF(ISBLANK(C7),"← Vyberte hodnotu z rozbaľovacej ponuky",IF(COUNTIF($C$5:C7,C7)>1,"Bunku "&C7&" ste vybrali viac než jedenkrát.","")) -> 
B8: 4 | C8: ODPISY | E8: =IF(ISBLANK(C8),"← Vyberte hodnotu z rozbaľovacej ponuky",IF(COUNTIF($C$5:C8,C8)>1,"Bunku "&C8&" ste vybrali viac než jedenkrát.","")) -> 
B9: 5 | C9: PREVÁDZKOVÝ ZISK | E9: =IF(ISBLANK(C9),"← Vyberte hodnotu z rozbaľovacej ponuky",IF(COUNTIF($C$5:C9,C9)>1,"Bunku "&C9&" ste vybrali viac než jedenkrát.","")) -> 

Sheet Výpočty (hidden)
A1: Tento hárok sa používa na výpočty finančnej zostavy a má zostať skrytý.
D2: Pozícia
B3: Tento rok | C3: =Vybratý_rok -> 2016 | D3: =MATCH(C3,lstRoky,0)+1 -> 8
B4: Predchádzajúci rok | C4: =C3-1 -> 2015 | D4: =MATCH(C4,lstRoky,0)+1 -> 7
B6: Pozícia | C6: =MATCH(C7,lstRoky,0)+1 -> 4 | D6: =MATCH(D7,lstRoky,0)+1 -> 5 | E6: =MATCH(E7,lstRoky,0)+1 -> 6 | F6: =MATCH(F7,lstRoky,0)+1 -> 7 | G6: =MATCH(G7,lstRoky,0)+1 -> 8 | I6: =COUNT(C6:G6) -> 5
B7: Kľúčové metriky | C7: =D7-1 -> 2012 | D7: =E7-1 -> 2013 | E7: =F7-1 -> 2014 | F7: =G7-1 -> 2015 | G7: =C3 -> 2016
A8: =MATCH(B8,'Vstupné finančné údaje'!$B$6:$B$30,0) -> 1 | B8: =IF('Nastavenia kľúčových metrík'!C5="","",'Nastavenia kľúčových metrík'!C5) -> PRÍJMY | C8: =IFERROR(INDEX('Vstupné finančné údaje'!$B$6:$I$30,$A8,C$6),NA()) -> 142728.38 | D8: =IFERROR(INDEX('Vstupné finančné údaje'!$B$6:$I$30,$A8,D$6),NA()) -> 150687.46 | E8: =IFERROR(INDEX('Vstupné finančné údaje'!$B$6:$I$30,$A8,E$6),NA()) -> 165044.56 | F8: =IFERROR(INDEX('Vstupné finančné údaje'!$B$6:$I$30,$A8,F$6),NA()) -> 180026.63 | G8: =IFERROR(INDEX('Vstupné finančné údaje'!$B$6:$I$30,$A8,G$6),NA()) -> 180583.88 | H8: =IFERROR(G8/F8-1,"") -> 0%
A9: =MATCH(B9,'Vstupné finančné údaje'!$B$6:$B$30,0) -> 6 | B9: =IF('Nastavenia kľúčových metrík'!C6="","",'Nastavenia kľúčových metrík'!C6) -> ČISTÝ ZISK | C9: =IFERROR(INDEX('Vstupné finančné údaje'!$B$6:$I$30,$A9,C$6),NA()) -> 55860.81 | D9: =IFERROR(INDEX('Vstupné finančné údaje'!$B$6:$I$30,$A9,D$6),NA()) -> 59747.95 | E9: =IFERROR(INDEX('Vstupné finančné údaje'!$B$6:$I$30,$A9,E$6),NA()) -> 61483.59 | F9: =IFERROR(INDEX('Vstupné finančné údaje'!$B$6:$I$30,$A9,F$6),NA()) -> 66272.1 | G9: =IFERROR(INDEX('Vstupné finančné údaje'!$B$6:$I$30,$A9,G$6),NA()) -> 67474.85 | H9: =IFERROR(G9/F9-1,"") -> 2%
A10: =MATCH(B10,'Vstupné finančné údaje'!$B$6:$B$30,0) -> 5 | B10: =IF('Nastavenia kľúčových metrík'!C7="","",'Nastavenia kľúčových metrík'!C7) -> ÚROK | C10: =IFERROR(INDEX('Vstupné finančné údaje'!$B$6:$I$30,$A10,C$6),NA()) -> 2893.11 | D10: =IFERROR(INDEX('Vstupné finančné údaje'!$B$6:$I$30,$A10,D$6),NA()) -> 3136.12 | E10: =IFERROR(INDEX('Vstupné finančné údaje'!$B$6:$I$30,$A10,E$6),NA()) -> 3148.53 | F10: =IFERROR(INDEX('Vstupné finančné údaje'!$B$6:$I$30,$A10,F$6),NA()) -> 3338.3 | G10: =IFERROR(INDEX('Vstupné finančné údaje'!$B$6:$I$30,$A10,G$6),NA()) -> 3789.47 | H10: 14%
A11: =MATCH(B11,'Vstupné finančné údaje'!$B$6:$B$30,0) -> 4 | B11: =IF('Nastavenia kľúčových metrík'!C8="","",'Nastavenia kľúčových metrík'!C8) -> ODPISY | C11: =IFERROR(INDEX('Vstupné finančné údaje'!$B$6:$I$30,$A11,C$6),NA()) -> 4656.92 | D11: =IFERROR(INDEX('Vstupné finančné údaje'!$B$6:$I$30,$A11,D$6),NA()) -> 4974.21 | E11: =IFERROR(INDEX('Vstupné finančné údaje'!$B$6:$I$30,$A11,E$6),NA()) -> 5024.11 | F11: =IFERROR(INDEX('Vstupné finančné údaje'!$B$6:$I$30,$A11,F$6),NA()) -> 5068.42 | G11: =IFERROR(INDEX('Vstupné finančné údaje'!$B$6:$I$30,$A11,G$6),NA()) -> 5546.88 | H11: 9%
A12: =MATCH(B12,'Vstupné finančné údaje'!$B$6:$B$30,0) -> 3 | B12: =IF('Nastavenia kľúčových metrík'!C9="","",'Nastavenia kľúčových metrík'!C9) -> PREVÁDZKOVÝ ZISK | C12: =IFERROR(INDEX('Vstupné finančné údaje'!$B$6:$I$30,$A12,C$6),NA()) -> 68857.69 | D12: =IFERROR(INDEX('Vstupné finančné údaje'!$B$6:$I$30,$A12,D$6),NA()) -> 75643.25 | E12: =IFERROR(INDEX('Vstupné finančné údaje'!$B$6:$I$30,$A12,E$6),NA()) -> 76755.26 | F12: =IFERROR(INDEX('Vstupné finančné údaje'!$B$6:$I$30,$A12,F$6),NA()) -> 77317.83 | G12: =IFERROR(INDEX('Vstupné finančné údaje'!$B$6:$I$30,$A12,G$6),NA()) -> 73425.99 | H12: -5%
B14: Všetky metriky (funguje až pre 25 metrík)
A15: =ROWS($B$15:B15) -> 1 | B15: =IF('Vstupné finančné údaje'!B6=0,"",'Vstupné finančné údaje'!B6) -> PRÍJMY | C15: =IF(B15="",NA(),IFERROR(INDEX('Vstupné finančné údaje'!$B$6:$I$30,$A15,C$6),NA())) -> 142728.38 | D15: =IF(B15="",NA(),IFERROR(INDEX('Vstupné finančné údaje'!$B$6:$I$30,$A15,D$6),NA())) -> 150687.46 | E15: =IF(B15="",NA(),IFERROR(INDEX('Vstupné finančné údaje'!$B$6:$I$30,$A15,E$6),NA())) -> 165044.56 | F15: =IF(B15="",NA(),IFERROR(INDEX('Vstupné finančné údaje'!$B$6:$I$30,$A15,F$6),NA())) -> 180026.63 | G15: =IF(B15="",NA(),IFERROR(INDEX('Vstupné finančné údaje'!$B$6:$I$30,$A15,G$6),NA())) -> 180583.88
A16: =ROWS($B$15:B16) -> 2 | B16: =IF('Vstupné finančné údaje'!B7=0,"",'Vstupné finančné údaje'!B7) -> PREVÁDZKOVÉ NÁKLADY | C16: =IF(B16="",NA(),IFERROR(INDEX('Vstupné finančné údaje'!$B$6:$I$30,$A16,C$6),NA())) -> 75924.86 | D16: =IF(B16="",NA(),IFERROR(INDEX('Vstupné finančné údaje'!$B$6:$I$30,$A16,D$6),NA())) -> 78901.27 | E16: =IF(B16="",NA(),IFERROR(INDEX('Vstupné finančné údaje'!$B$6:$I$30,$A16,E$6),NA())) -> 81674.37 | F16: =IF(B16="",NA(),IFERROR(INDEX('Vstupné finančné údaje'!$B$6:$I$30,$A16,F$6),NA())) -> 80883.33 | G16: =IF(B16="",NA(),IFERROR(INDEX('Vstupné finančné údaje'!$B$6:$I$30,$A16,G$6),NA())) -> 94419.45
A17: =ROWS($B$15:B17) -> 3 | B17: =IF('Vstupné finančné údaje'!B8=0,"",'Vstupné finančné údaje'!B8) -> PREVÁDZKOVÝ ZISK | C17: =IF(B17="",NA(),IFERROR(INDEX('Vstupné finančné údaje'!$B$6:$I$30,$A17,C$6),NA())) -> 68857.69 | D17: =IF(B17="",NA(),IFERROR(INDEX('Vstupné finančné údaje'!$B$6:$I$30,$A17,D$6),NA())) -> 75643.25 | E17: =IF(B17="",NA(),IFERROR(INDEX('Vstupné finančné údaje'!$B$6:$I$30,$A17,E$6),NA())) -> 76755.26 | F17: =IF(B17="",NA(),IFERROR(INDEX('Vstupné finančné údaje'!$B$6:$I$30,$A17,F$6),NA())) -> 77317.83 | G17: =IF(B17="",NA(),IFERROR(INDEX('Vstupné finančné údaje'!$B$6:$I$30,$A17,G$6),NA())) -> 73425.99
A18: =ROWS($B$15:B18) -> 4 | B18: =IF('Vstupné finančné údaje'!B9=0,"",'Vstupné finančné údaje'!B9) -> ODPISY | C18: =IF(B18="",NA(),IFERROR(INDEX('Vstupné finančné údaje'!$B$6:$I$30,$A18,C$6),NA())) -> 4656.92 | D18: =IF(B18="",NA(),IFERROR(INDEX('Vstupné finančné údaje'!$B$6:$I$30,$A18,D$6),NA())) -> 4974.21 | E18: =IF(B18="",NA(),IFERROR(INDEX('Vstupné finančné údaje'!$B$6:$I$30,$A18,E$6),NA())) -> 5024.11 | F18: =IF(B18="",NA(),IFERROR(INDEX('Vstupné finančné údaje'!$B$6:$I$30,$A18,F$6),NA())) -> 5068.42 | G18: =IF(B18="",NA(),IFERROR(INDEX('Vstupné finančné údaje'!$B$6:$I$30,$A18,G$6),NA())) -> 5546.88
A19: =ROWS($B$15:B19) -> 5 | B19: =IF('Vstupné finančné údaje'!B10=0,"",'Vstupné finančné údaje'!B10) -> ÚROK | C19: =IF(B19="",NA(),IFERROR(INDEX('Vstupné finančné údaje'!$B$6:$I$30,$A19,C$6),NA())) -> 2893.11 | D19: =IF(B19="",NA(),IFERROR(INDEX('Vstupné finančné údaje'!$B$6:$I$30,$A19,D$6),NA())) -> 3136.12 | E19: =IF(B19="",NA(),IFERROR(INDEX('Vstupné finančné údaje'!$B$6:$I$30,$A19,E$6),NA())) -> 3148.53 | F19: =IF(B19="",NA(),IFERROR(INDEX('Vstupné finančné údaje'!$B$6:$I$30,$A19,F$6),NA())) -> 3338.3 | G19: =IF(B19="",NA(),IFERROR(INDEX('Vstupné finančné údaje'!$B$6:$I$30,$A19,G$6),NA())) -> 3789.47
A20: =ROWS($B$15:B20) -> 6 | B20: =IF('Vstupné finančné údaje'!B11=0,"",'Vstupné finančné údaje'!B11) -> ČISTÝ ZISK | C20: =IF(B20="",NA(),IFERROR(INDEX('Vstupné finančné údaje'!$B$6:$I$30,$A20,C$6),NA())) -> 55860.81 | D20: =IF(B20="",NA(),IFERROR(INDEX('Vstupné finančné údaje'!$B$6:$I$30,$A20,D$6),NA())) -> 59747.95 | E20: =IF(B20="",NA(),IFERROR(INDEX('Vstupné finančné údaje'!$B$6:$I$30,$A20,E$6),NA())) -> 61483.59 | F20: =IF(B20="",NA(),IFERROR(INDEX('Vstupné finančné údaje'!$B$6:$I$30,$A20,F$6),NA())) -> 66272.1 | G20: =IF(B20="",NA(),IFERROR(INDEX('Vstupné finančné údaje'!$B$6:$I$30,$A20,G$6),NA())) -> 67474.85
A21: =ROWS($B$15:B21) -> 7 | B21: =IF('Vstupné finančné údaje'!B12=0,"",'Vstupné finančné údaje'!B12) -> DAŇ | C21: =IF(B21="",NA(),IFERROR(INDEX('Vstupné finančné údaje'!$B$6:$I$30,$A21,C$6),NA())) -> 25576.74 | D21: =IF(B21="",NA(),IFERROR(INDEX('Vstupné finančné údaje'!$B$6:$I$30,$A21,D$6),NA())) -> 27498.86 | E21: =IF(B21="",NA(),IFERROR(INDEX('Vstupné finančné údaje'!$B$6:$I$30,$A21,E$6),NA())) -> 28335.67 | F21: =IF(B21="",NA(),IFERROR(INDEX('Vstupné finančné údaje'!$B$6:$I$30,$A21,F$6),NA())) -> 29424.53 | G21: =IF(B21="",NA(),IFERROR(INDEX('Vstupné finančné údaje'!$B$6:$I$30,$A21,G$6),NA())) -> 31408.25
A22: =ROWS($B$15:B22) -> 8 | B22: =IF('Vstupné finančné údaje'!B13=0,"",'Vstupné finančné údaje'!B13) -> ZISK PO ZDANENÍ | C22: =IF(B22="",NA(),IFERROR(INDEX('Vstupné finančné údaje'!$B$6:$I$30,$A22,C$6),NA())) -> 38418.53 | D22: =IF(B22="",NA(),IFERROR(INDEX('Vstupné finančné údaje'!$B$6:$I$30,$A22,D$6),NA())) -> 39895.05 | E22: =IF(B22="",NA(),IFERROR(INDEX('Vstupné finančné údaje'!$B$6:$I$30,$A22,E$6),NA())) -> 40607.73 | F22: =IF(B22="",NA(),IFERROR(INDEX('Vstupné finančné údaje'!$B$6:$I$30,$A22,F$6),NA())) -> 42438.2 | G22: =IF(B22="",NA(),IFERROR(INDEX('Vstupné finančné údaje'!$B$6:$I$30,$A22,G$6),NA())) -> 50247.68
A23: =ROWS($B$15:B23) -> 9 | B23: =IF('Vstupné finančné údaje'!B14=0,"",'Vstupné finančné údaje'!B14) -> METRIKA 1 | C23: =IF(B23="",NA(),IFERROR(INDEX('Vstupné finančné údaje'!$B$6:$I$30,$A23,C$6),NA())) -> 13.78 | D23: =IF(B23="",NA(),IFERROR(INDEX('Vstupné finančné údaje'!$B$6:$I$30,$A23,D$6),NA())) -> 14.29 | E23: =IF(B23="",NA(),IFERROR(INDEX('Vstupné finančné údaje'!$B$6:$I$30,$A23,E$6),NA())) -> 15.57 | F23: =IF(B23="",NA(),IFERROR(INDEX('Vstupné finančné údaje'!$B$6:$I$30,$A23,F$6),NA())) -> 16.78 | G23: =IF(B23="",NA(),IFERROR(INDEX('Vstupné finančné údaje'!$B$6:$I$30,$A23,G$6),NA())) -> 19.96
A24: =ROWS($B$15:B24) -> 10 | B24: =IF('Vstupné finančné údaje'!B15=0,"",'Vstupné finančné údaje'!B15) -> METRIKA 2 | C24: =IF(B24="",NA(),IFERROR(INDEX('Vstupné finančné údaje'!$B$6:$I$30,$A24,C$6),NA())) -> 19.22 | D24: =IF(B24="",NA(),IFERROR(INDEX('Vstupné finančné údaje'!$B$6:$I$30,$A24,D$6),NA())) -> 20.17 | E24: =IF(B24="",NA(),IFERROR(INDEX('Vstupné finančné údaje'!$B$6:$I$30,$A24,E$6),NA())) -> 20.48 | F24: =IF(B24="",NA(),IFERROR(INDEX('Vstupné finančné údaje'!$B$6:$I$30,$A24,F$6),NA())) -> 21.84 | G24: =IF(B24="",NA(),IFERROR(INDEX('Vstupné finančné údaje'!$B$6:$I$30,$A24,G$6),NA())) -> 26.01
A25: =ROWS($B$15:B25) -> 11 | B25: =IF('Vstupné finančné údaje'!B16=0,"",'Vstupné finančné údaje'!B16) -> METRIKA 3 | C25: =IF(B25="",NA(),IFERROR(INDEX('Vstupné finančné údaje'!$B$6:$I$30,$A25,C$6),NA())) -> 21.87 | D25: =IF(B25="",NA(),IFERROR(INDEX('Vstupné finančné údaje'!$B$6:$I$30,$A25,D$6),NA())) -> 23.19 | E25: =IF(B25="",NA(),IFERROR(INDEX('Vstupné finančné údaje'!$B$6:$I$30,$A25,E$6),NA())) -> 24.67 | F25: =IF(B25="",NA(),IFERROR(INDEX('Vstupné finančné údaje'!$B$6:$I$30,$A25,F$6),NA())) -> 26.39 | G25: =IF(B25="",NA(),IFERROR(INDEX('Vstupné finančné údaje'!$B$6:$I$30,$A25,G$6),NA())) -> 31.08
A26: =ROWS($B$15:B26) -> 12 | B26: =IF('Vstupné finančné údaje'!B17=0,"",'Vstupné finančné údaje'!B17) -> METRIKA 4 | C26: =IF(B26="",NA(),IFERROR(INDEX('Vstupné finančné údaje'!$B$6:$I$30,$A26,C$6),NA())) -> 12.59 | D26: =IF(B26="",NA(),IFERROR(INDEX('Vstupné finančné údaje'!$B$6:$I$30,$A26,D$6),NA())) -> 13.7 | E26: =IF(B26="",NA(),IFERROR(INDEX('Vstupné finančné údaje'!$B$6:$I$30,$A26,E$6),NA())) -> 13.76 | F26: =IF(B26="",NA(),IFERROR(INDEX('Vstupné finančné údaje'!$B$6:$I$30,$A26,F$6),NA())) -> 14.59 | G26: =IF(B26="",NA(),IFERROR(INDEX('Vstupné finančné údaje'!$B$6:$I$30,$A26,G$6),NA())) -> 14.92
A27: =ROWS($B$15:B27) -> 13 | B27: =IF('Vstupné finančné údaje'!B18=0,"",'Vstupné finančné údaje'!B18) -> METRIKA 5 | C27: =IF(B27="",NA(),IFERROR(INDEX('Vstupné finančné údaje'!$B$6:$I$30,$A27,C$6),NA())) -> 0.85 | D27: =IF(B27="",NA(),IFERROR(INDEX('Vstupné finančné údaje'!$B$6:$I$30,$A27,D$6),NA())) -> 0.89 | E27: =IF(B27="",NA(),IFERROR(INDEX('Vstupné finančné údaje'!$B$6:$I$30,$A27,E$6),NA())) -> 0.91 | F27: =IF(B27="",NA(),IFERROR(INDEX('Vstupné finančné údaje'!$B$6:$I$30,$A27,F$6),NA())) -> 1 | G27: =IF(B27="",NA(),IFERROR(INDEX('Vstupné finančné údaje'!$B$6:$I$30,$A27,G$6),NA())) -> 1.03
A28: =ROWS($B$15:B28) -> 14 | B28: =IF('Vstupné finančné údaje'!B19=0,"",'Vstupné finančné údaje'!B19) -> METRIKA 6 | C28: =IF(B28="",NA(),IFERROR(INDEX('Vstupné finančné údaje'!$B$6:$I$30,$A28,C$6),NA())) -> 0.27 | D28: =IF(B28="",NA(),IFERROR(INDEX('Vstupné finančné údaje'!$B$6:$I$30,$A28,D$6),NA())) -> 0.28 | E28: =IF(B28="",NA(),IFERROR(INDEX('Vstupné finančné údaje'!$B$6:$I$30,$A28,E$6),NA())) -> 0.29 | F28: =IF(B28="",NA(),IFERROR(INDEX('Vstupné finančné údaje'!$B$6:$I$30,$A28,F$6),NA())) -> 0.3 | G28: =IF(B28="",NA(),IFERROR(INDEX('Vstupné finančné údaje'!$B$6:$I$30,$A28,G$6),NA())) -> 0.34
A29: =ROWS($B$15:B29) -> 15 | B29: =IF('Vstupné finančné údaje'!B20=0,"",'Vstupné finančné údaje'!B20) ->  | C29: =IF(B29="",NA(),IFERROR(INDEX('Vstupné finančné údaje'!$B$6:$I$30,$A29,C$6),NA())) ->  | D29: =IF(B29="",NA(),IFERROR(INDEX('Vstupné finančné údaje'!$B$6:$I$30,$A29,D$6),NA())) ->  | E29: =IF(B29="",NA(),IFERROR(INDEX('Vstupné finančné údaje'!$B$6:$I$30,$A29,E$6),NA())) ->  | F29: =IF(B29="",NA(),IFERROR(INDEX('Vstupné finančné údaje'!$B$6:$I$30,$A29,F$6),NA())) ->  | G29: =IF(B29="",NA(),IFERROR(INDEX('Vstupné finančné údaje'!$B$6:$I$30,$A29,G$6),NA())) -> 
A30: =ROWS($B$15:B30) -> 16 | B30: =IF('Vstupné finančné údaje'!B21=0,"",'Vstupné finančné údaje'!B21) ->  | C30: =IF(B30="",NA(),IFERROR(INDEX('Vstupné finančné údaje'!$B$6:$I$30,$A30,C$6),NA())) ->  | D30: =IF(B30="",NA(),IFERROR(INDEX('Vstupné finančné údaje'!$B$6:$I$30,$A30,D$6),NA())) ->  | E30: =IF(B30="",NA(),IFERROR(INDEX('Vstupné finančné údaje'!$B$6:$I$30,$A30,E$6),NA())) ->  | F30: =IF(B30="",NA(),IFERROR(INDEX('Vstupné finančné údaje'!$B$6:$I$30,$A30,F$6),NA())) ->  | G30: =IF(B30="",NA(),IFERROR(INDEX('Vstupné finančné údaje'!$B$6:$I$30,$A30,G$6),NA())) -> 
A31: =ROWS($B$15:B31) -> 17 | B31: =IF('Vstupné finančné údaje'!B22=0,"",'Vstupné finančné údaje'!B22) ->  | C31: =IF(B31="",NA(),IFERROR(INDEX('Vstupné finančné údaje'!$B$6:$I$30,$A31,C$6),NA())) ->  | D31: =IF(B31="",NA(),IFERROR(INDEX('Vstupné finančné údaje'!$B$6:$I$30,$A31,D$6),NA())) ->  | E31: =IF(B31="",NA(),IFERROR(INDEX('Vstupné finančné údaje'!$B$6:$I$30,$A31,E$6),NA())) ->  | F31: =IF(B31="",NA(),IFERROR(INDEX('Vstupné finančné údaje'!$B$6:$I$30,$A31,F$6),NA())) ->  | G31: =IF(B31="",NA(),IFERROR(INDEX('Vstupné finančné údaje'!$B$6:$I$30,$A31,G$6),NA())) -> 
A32: =ROWS($B$15:B32) -> 18 | B32: =IF('Vstupné finančné údaje'!B23=0,"",'Vstupné finančné údaje'!B23) ->  | C32: =IF(B32="",NA(),IFERROR(INDEX('Vstupné finančné údaje'!$B$6:$I$30,$A32,C$6),NA())) ->  | D32: =IF(B32="",NA(),IFERROR(INDEX('Vstupné finančné údaje'!$B$6:$I$30,$A32,D$6),NA())) ->  | E32: =IF(B32="",NA(),IFERROR(INDEX('Vstupné finančné údaje'!$B$6:$I$30,$A32,E$6),NA())) ->  | F32: =IF(B32="",NA(),IFERROR(INDEX('Vstupné finančné údaje'!$B$6:$I$30,$A32,F$6),NA())) ->  | G32: =IF(B32="",NA(),IFERROR(INDEX('Vstupné finančné údaje'!$B$6:$I$30,$A32,G$6),NA())) -> 
A33: =ROWS($B$15:B33) -> 19 | B33: =IF('Vstupné finančné údaje'!B24=0,"",'Vstupné finančné údaje'!B24) ->  | C33: =IF(B33="",NA(),IFERROR(INDEX('Vstupné finančné údaje'!$B$6:$I$30,$A33,C$6),NA())) ->  | D33: =IF(B33="",NA(),IFERROR(INDEX('Vstupné finančné údaje'!$B$6:$I$30,$A33,D$6),NA())) ->  | E33: =IF(B33="",NA(),IFERROR(INDEX('Vstupné finančné údaje'!$B$6:$I$30,$A33,E$6),NA())) ->  | F33: =IF(B33="",NA(),IFERROR(INDEX('Vstupné finančné údaje'!$B$6:$I$30,$A33,F$6),NA())) ->  | G33: =IF(B33="",NA(),IFERROR(INDEX('Vstupné finančné údaje'!$B$6:$I$30,$A33,G$6),NA())) -> 
A34: =ROWS($B$15:B34) -> 20 | B34: =IF('Vstupné finančné údaje'!B25=0,"",'Vstupné finančné údaje'!B25) ->  | C34: =IF(B34="",NA(),IFERROR(INDEX('Vstupné finančné údaje'!$B$6:$I$30,$A34,C$6),NA())) ->  | D34: =IF(B34="",NA(),IFERROR(INDEX('Vstupné finančné údaje'!$B$6:$I$30,$A34,D$6),NA())) ->  | E34: =IF(B34="",NA(),IFERROR(INDEX('Vstupné finančné údaje'!$B$6:$I$30,$A34,E$6),NA())) ->  | F34: =IF(B34="",NA(),IFERROR(INDEX('Vstupné finančné údaje'!$B$6:$I$30,$A34,F$6),NA())) ->  | G34: =IF(B34="",NA(),IFERROR(INDEX('Vstupné finančné údaje'!$B$6:$I$30,$A34,G$6),NA())) -> 
A35: =ROWS($B$15:B35) -> 21 | B35: =IF('Vstupné finančné údaje'!B26=0,"",'Vstupné finančné údaje'!B26) ->  | C35: =IF(B35="",NA(),IFERROR(INDEX('Vstupné finančné údaje'!$B$6:$I$30,$A35,C$6),NA())) ->  | D35: =IF(B35="",NA(),IFERROR(INDEX('Vstupné finančné údaje'!$B$6:$I$30,$A35,D$6),NA())) ->  | E35: =IF(B35="",NA(),IFERROR(INDEX('Vstupné finančné údaje'!$B$6:$I$30,$A35,E$6),NA())) ->  | F35: =IF(B35="",NA(),IFERROR(INDEX('Vstupné finančné údaje'!$B$6:$I$30,$A35,F$6),NA())) ->  | G35: =IF(B35="",NA(),IFERROR(INDEX('Vstupné finančné údaje'!$B$6:$I$30,$A35,G$6),NA())) -> 
A36: =ROWS($B$15:B36) -> 22 | B36: =IF('Vstupné finančné údaje'!B27=0,"",'Vstupné finančné údaje'!B27) ->  | C36: =IF(B36="",NA(),IFERROR(INDEX('Vstupné finančné údaje'!$B$6:$I$30,$A36,C$6),NA())) ->  | D36: =IF(B36="",NA(),IFERROR(INDEX('Vstupné finančné údaje'!$B$6:$I$30,$A36,D$6),NA())) ->  | E36: =IF(B36="",NA(),IFERROR(INDEX('Vstupné finančné údaje'!$B$6:$I$30,$A36,E$6),NA())) ->  | F36: =IF(B36="",NA(),IFERROR(INDEX('Vstupné finančné údaje'!$B$6:$I$30,$A36,F$6),NA())) ->  | G36: =IF(B36="",NA(),IFERROR(INDEX('Vstupné finančné údaje'!$B$6:$I$30,$A36,G$6),NA())) -> 
A37: =ROWS($B$15:B37) -> 23 | B37: =IF('Vstupné finančné údaje'!B28=0,"",'Vstupné finančné údaje'!B28) ->  | C37: =IF(B37="",NA(),IFERROR(INDEX('Vstupné finančné údaje'!$B$6:$I$30,$A37,C$6),NA())) ->  | D37: =IF(B37="",NA(),IFERROR(INDEX('Vstupné finančné údaje'!$B$6:$I$30,$A37,D$6),NA())) ->  | E37: =IF(B37="",NA(),IFERROR(INDEX('Vstupné finančné údaje'!$B$6:$I$30,$A37,E$6),NA())) ->  | F37: =IF(B37="",NA(),IFERROR(INDEX('Vstupné finančné údaje'!$B$6:$I$30,$A37,F$6),NA())) ->  | G37: =IF(B37="",NA(),IFERROR(INDEX('Vstupné finančné údaje'!$B$6:$I$30,$A37,G$6),NA())) -> 
A38: =ROWS($B$15:B38) -> 24 | B38: =IF('Vstupné finančné údaje'!B29=0,"",'Vstupné finančné údaje'!B29) ->  | C38: =IF(B38="",NA(),IFERROR(INDEX('Vstupné finančné údaje'!$B$6:$I$30,$A38,C$6),NA())) ->  | D38: =IF(B38="",NA(),IFERROR(INDEX('Vstupné finančné údaje'!$B$6:$I$30,$A38,D$6),NA())) ->  | E38: =IF(B38="",NA(),IFERROR(INDEX('Vstupné finančné údaje'!$B$6:$I$30,$A38,E$6),NA())) ->  | F38: =IF(B38="",NA(),IFERROR(INDEX('Vstupné finančné údaje'!$B$6:$I$30,$A38,F$6),NA())) ->  | G38: =IF(B38="",NA(),IFERROR(INDEX('Vstupné finančné údaje'!$B$6:$I$30,$A38,G$6),NA())) -> 
A39: =ROWS($B$15:B39) -> 25 | B39: =IF('Vstupné finančné údaje'!B30=0,"",'Vstupné finančné údaje'!B30) ->  | C39: =IF(B39="",NA(),IFERROR(INDEX('Vstupné finančné údaje'!$B$6:$I$30,$A39,C$6),NA())) ->  | D39: =IF(B39="",NA(),IFERROR(INDEX('Vstupné finančné údaje'!$B$6:$I$30,$A39,D$6),NA())) ->  | E39: =IF(B39="",NA(),IFERROR(INDEX('Vstupné finančné údaje'!$B$6:$I$30,$A39,E$6),NA())) ->  | F39: =IF(B39="",NA(),IFERROR(INDEX('Vstupné finančné údaje'!$B$6:$I$30,$A39,F$6),NA())) ->  | G39: =IF(B39="",NA(),IFERROR(INDEX('Vstupné finančné údaje'!$B$6:$I$30,$A39,G$6),NA())) -> 
